lending/lending_fUSD_20250719
["ID","MTS","AMOUNT","RATE_DAILY","PERIOD"]
[373201024,1752904238134,-263.2420672,0.00019,2]
[373201025,1752904238143,-887.0,0.00019003,2]
[373201026,1752904238152,-2761.16616655,0.00019012,2]
[373201027,1752904238162,-6606.5156,0.00019035,2]
[373201028,1752904238171,-167.09695729,0.00019078,2]
[373201029,1752904238180,-887.0,0.00019096,2]
[373201030,1752904238189,-534.94332228,0.00019098,2]
[373201031,1752904238198,-1000.0,0.00019099,2]
[373201032,1752904238208,-173.914734,0.00019099,2]
[373201033,1752904238218,-3996.78593923,0.00019099,2]
[373201034,1752904238227,-48490.41738552,0.00019099,2]
[373201035,1752904238284,-1111.19559119,0.00019099,2]
[373201221,1752904240544,-280.5957504,0.00019099,2]
[373201222,1752904240556,-533.73500003,0.00019099,2]
[373201234,1752904240726,-3687.03407584,0.00019099,2]
[373201237,1752904240738,-9094.41705663,0.00019099,2]
[373201642,1752904244547,-545.94071308,0.00018999,2]
[373201645,1752904244557,-3413.96393693,0.00019099,2]
[373201649,1752904244569,-17871.606644,0.00019099,2]
[373201882,1752904246426,-1365.72908424,0.00019099,2]
[373201884,1752904246438,-1206.65738253,0.00019099,2]
[373202694,1752904318922,205.00003,0.00015782,4]
[373202697,1752904398459,2000.0,0.00024981,120]
[373202698,1752904405689,500.0,0.00024981,120]
[373202701,1752904704035,155.1,0.00013699,2]
[373202720,1752904994192,2000.0,0.00024981,120]
[373202722,1752905000471,500.0,0.00024981,120]
[373202730,1752905201398,-522.0,0.00016993,2]
[373202731,1752905201422,-174.81812504,0.00017004,2]
[373202732,1752905201444,-115.58534318,0.00017394,2]
[373203111,1752905432260,-884.41465682,0.00017394,2]
[373203112,1752905432273,-150.0,0.0001757,2]
[373203113,1752905432282,-300.0,0.00017747,2]
[373203114,1752905432291,-69.44534318,0.00017747,2]
[373203115,1752905432376,-180.55465682,0.00017747,2]
[373203116,1752905432387,-205.0,0.00018099,2]
[373203117,1752905432398,-1200.0,0.00018099,2]
[373203118,1752905432408,-16156.44534318,0.000181,2]
[373203119,1752905432422,-5603.39135082,0.000181,2]
[373203120,1752905432433,-278.03819749,0.00018158,2]
[373203121,1752905432446,-500.0,0.00018158,2]
[373203122,1752905432456,-515.42405916,0.00018158,2]
[373203123,1752905432465,-280.36973255,0.00018158,2]
[373203124,1752905432477,-219.63026745,0.00018158,2]
[373203125,1752905432489,-151.0,0.00018158,2]
[373203126,1752905432498,-142.36973255,0.0001816,2]
[373203127,1752905432521,-27.75026745,0.0001816,2]
[373203128,1752905432531,-5584.84118172,0.00018169,2]
[373203680,1752905438291,-431.97812469,0.00018169,2]
[373203687,1752905438348,-4170.54069359,0.00018169,2]
[373203689,1752905438358,-1000.0,0.00018238,2]
[373203722,1752905438668,-256.41,0.0001826,2]
[373203725,1752905438688,-150.0,0.00018314,2]
[373203727,1752905438697,-170.4,0.00018329,2]
[373203729,1752905438707,-500.0,0.00018438,2]
[373203731,1752905438716,-2402.0,0.0001855,2]
[373203733,1752905438726,-2402.0,0.00018579,2]
[373203735,1752905438735,-150.0,0.00018623,2]
[373203737,1752905438744,-150.0,0.00018627,2]
[373203739,1752905438754,-207.4,0.00018686,2]
[373203741,1752905438764,-150.0,0.00018856,2]
[373203743,1752905438773,-200.0,0.000189,6]
[373203745,1752905438784,-850.0,0.00018909,2]
[373203747,1752905438794,-2020.39773,0.0001891,2]
[373203749,1752905438803,-751.74303026,0.00018999,2]
[373203751,1752905438813,-2500.0,0.00019,2]
[373203753,1752905438823,-761.52799281,0.00019,2]
[373203755,1752905438833,-751.74303026,0.00019,2]
[373203757,1752905438842,-916.98,0.00019,2]
[373203759,1752905438852,-3535.40431159,0.00019,2]
[373203761,1752905438862,-833.18145181,0.00019,2]
[373203765,1752905438896,-832.06991559,0.00019,2]
[373203908,1752905440378,-3146.98139674,0.00019,2]
[373203916,1752905440444,-472.86339972,0.00019,2]
[373203918,1752905440457,-345.16037055,0.00019,2]
[373203920,1752905440469,-332.98931809,0.00019,2]
[373203922,1752905440478,-39.3511722,0.0001901,2]
[373203945,1752905440688,-1272.46193842,0.0001901,2]
[373203947,1752905440701,-708.58462938,0.0001901,2]
[373203949,1752905440711,-150.0,0.00019039,2]
[373203951,1752905440723,-1000.0,0.00019078,2]
[373203953,1752905440734,-151.0,0.00019099,2]
[373203955,1752905440744,-16908.64696272,0.000191,2]
[373204293,1752905444155,-566.56390379,0.000191,2]
[373204527,1752905446522,-395.02598281,0.00019,2]
[373204529,1752905446531,-395.02598281,0.00019,2]
[373204531,1752905446542,-395.02598281,0.00019,2]
[373204533,1752905446552,-6314.92205157,0.000191,2]
[373204537,1752905446582,-4176.57026094,0.000191,2]
[373205929,1752905546438,-1500.0,0.00019178,7]
[373205930,1752905546463,-1500.0,0.00019178,7]
[373205931,1752905546492,-1500.0,0.00019178,7]
[373205932,1752905546516,-1500.0,0.00019178,7]
[373205933,1752905546540,-1500.0,0.00019178,7]
[373205934,1752905546566,-1531.308145,0.00019178,7]
[373205941,1752905703546,-500.0,0.000198,7]
[373205942,1752905703579,-479.691855,0.000199,7]
[373205946,1752905825865,155.1,0.00013699,2]
[373205963,1752906559167,-522.0,0.00016257,2]
[373205973,1752906631472,-1000.0,0.00017424,2]
[373205975,1752906631482,-522.0,0.00017687,2]
[373205976,1752906631492,-159.97,0.00017815,2]
[373205977,1752906631501,-1000.0,0.00017819,2]
[373205978,1752906631510,-867.23,0.00017851,2]
[373205979,1752906631520,-250.0,0.00017882,2]
[373205980,1752906631529,-300.0,0.00017882,2]
[373205981,1752906631538,-1000.0,0.00018123,2]
[373205982,1752906631547,-345.78,0.00018124,2]
[373205983,1752906631556,-198.18591761,0.00018182,2]
[373205984,1752906631576,-19.26408239,0.00018182,2]
[373205985,1752906631585,-151.0,0.00018201,2]
[373205986,1752906631594,-231.08,0.00018212,2]
[373205987,1752906631603,-170.4,0.00018329,2]
[373205988,1752906631613,-167.21,0.00018384,2]
[373205989,1752906631623,-1200.0,0.0001857,2]
[373205990,1752906631632,-1000.0,0.00018571,2]
[373205991,1752906631641,-1022.91,0.0001863,2]
[373205992,1752906631651,-355.0,0.00018631,2]
[373205993,1752906631660,-274.74060666,0.00018645,2]
[373205994,1752906631676,-80.25939334,0.00018645,2]
[373205995,1752906631685,-355.0,0.0001867,2]
[373205996,1752906631694,-66.9245257,0.00018686,2]
[373205997,1752906631705,-593.188,0.00018686,2]
[373205998,1752906631736,-904.98957114,0.00018686,2]
[373205999,1752906631746,-3455.08254796,0.00018686,2]
[373206000,1752906631757,-2122.6713552,0.00018686,2]
[373206001,1752906631766,-207.4,0.00018686,2]
[373206002,1752906631779,-10.21987661,0.00018717,2]
[373206003,1752906631790,-917.14810039,0.00018717,2]
[373206004,1752906631799,-2924.78628013,0.00018741,2]
[373206005,1752906631809,-355.0,0.00018909,2]
[373206006,1752906631819,-150.0,0.00018958,2]
[373206007,1752906631828,-500.0,0.00018986,2]
[373206008,1752906631838,-1000.0,0.00019,2]
[373206009,1752906631847,-2241.404,0.00019,2]
[373206010,1752906631857,-3229.917887,0.00019,2]
[373206011,1752906631869,-2351.14880353,0.00019,2]
[373206012,1752906631890,-601.30776947,0.00019,2]
[373206013,1752906631901,-5931.5,0.00019,2]
[373206141,1752906637860,-2673.12554,0.00019,2]
[373206142,1752906637870,-167.09695729,0.00019,2]
[373206143,1752906637879,-217.34981609,0.00019,2]
[373206144,1752906637889,-302.90470495,0.00019,2]
[373206145,1752906637900,-6297.67925357,0.00019,2]
[373206146,1752906637909,-150.0,0.00019002,2]
[373206147,1752906637920,-5051.4045059,0.00019046,2]
[373206148,1752906637929,-171.052409,0.00019047,2]
[373206149,1752906637940,-151.0,0.00019047,2]
[373206150,1752906637950,-151.0,0.00019047,2]
[373206151,1752906637960,-150.0,0.00019047,2]
[373206152,1752906637970,-1768.3868132,0.00019047,2]
[373206308,1752906639602,-1037.6131868,0.00019047,2]
[373206310,1752906639612,-150.0,0.00019047,2]
[373206312,1752906639621,-150.0,0.00019047,2]
[373206314,1752906639630,-150.0,0.00019047,2]
[373206316,1752906639639,-111.40376249,0.00019047,2]
[373206336,1752906639830,-876.59623751,0.00019047,2]
[373206338,1752906639839,-10.08675539,0.00019047,2]
[373206347,1752906639918,-139.91324461,0.00019047,2]
[373206349,1752906639928,-500.0,0.00019047,2]
[373206351,1752906639938,-150.0,0.00019047,2]
[373206382,1752906640186,-500.0,0.00019047,2]
[373206384,1752906640196,-189.89814455,0.00019047,2]
[373206385,1752906640205,-150.0,0.00019047,2]
[373206387,1752906640215,-150.0,0.00019047,2]
[373206389,1752906640225,-150.0,0.00019047,2]
[373206391,1752906640234,-150.0,0.00019047,2]
[373206393,1752906640243,-150.0,0.00019047,2]
[373206395,1752906640253,-150.0,0.00019047,2]
[373206397,1752906640262,-150.0,0.00019047,2]
[373206399,1752906640271,-150.0,0.00019047,2]
[373206401,1752906640280,-150.0,0.00019047,2]
[373206404,1752906640290,-150.0,0.00019047,2]
[373206405,1752906640299,-660.0,0.00019047,2]
[373206408,1752906640309,-500.0,0.00019047,2]
[373206409,1752906640318,-150.0,0.00019047,2]
[373206411,1752906640327,-355.0,0.00019089,2]
[373206413,1752906640336,-151.658743,0.00019099,2]
[373206415,1752906640345,-151.0,0.00019099,2]
[373206417,1752906640355,-151.0,0.00019099,2]
[373206419,1752906640365,-153.014459,0.00019099,2]
[373206421,1752906640374,-274.99155648,0.00019099,2]
[373206423,1752906640384,-230.071135,0.00019099,2]
[373206425,1752906640393,-162.060627,0.00019099,2]
[373206427,1752906640403,-151.0,0.00019099,2]
[373206429,1752906640412,-151.0,0.00019099,2]
[373206431,1752906640421,-150.0,0.00019099,2]
[373206433,1752906640430,-29538.8113201,0.00019099,2]
[373206435,1752906640442,-3143.89999,0.00019099,2]
[373206664,1752906642628,-34.69541264,0.00019099,2]
[373206682,1752906642787,-3966.36578881,0.00019099,2]
[373206956,1752906645580,-2479.999999,0.00019099,2]
[373206964,1752906645671,-458.6951431,0.00019099,2]
[373206967,1752906645691,-1964.62327973,0.00019099,2]
[373206976,1752906645782,-3423.41827767,0.00019099,2]
[373206979,1752906645800,-1041.452012,0.00019099,2]
[373207501,1752906832749,155.1,0.00013699,2]
[373208229,1752907607087,-263.99061614,0.00016687,2]
[373208547,1752907771067,-507.0,0.00015687,2]
[373208612,1752907831709,-1083.0,0.0001745,2]
[373208613,1752907831720,-242.64,0.00017625,2]
[373208614,1752907831730,-200.0,0.00017632,2]
[373208615,1752907831739,-300.0,0.00017694,2]
[373208616,1752907831749,-1000.0,0.00017727,2]
[373208617,1752907831758,-256.13,0.00017787,2]
[373208618,1752907831768,-165.79,0.00017832,2]
[373208619,1752907831777,-151.0,0.00017899,2]
[373208620,1752907831786,-151.0,0.00017899,2]
[373208621,1752907831796,-2614.93,0.0001791,2]
[373208622,1752907831806,-150.0,0.0001794,2]
[373208623,1752907831815,-150.0,0.00017954,2]
[373208624,1752907831825,-500.0,0.00018,2]
[373208625,1752907831834,-1613.47,0.00018025,2]
[373208626,1752907831843,-1200.0,0.00018054,2]
[373208627,1752907831853,-500.0,0.00018055,2]
[373208629,1752907831862,-150.0,0.0001809,2]
[373208630,1752907831871,-500.0,0.00018137,2]
[373208631,1752907831881,-507.0,0.00018294,5]
[373208632,1752907831891,-500.0,0.00018301,2]
[373208633,1752907831900,-300.0,0.00018306,2]
[373208634,1752907831909,-1151.0,0.00018307,2]
[373208635,1752907831919,-321.65,0.00018329,2]
[373208636,1752907831929,-1851.34,0.00018356,2]
[373208637,1752907831938,-151.0,0.00018384,2]
[373208638,1752907831947,-150.0,0.0001847,2]
[373208639,1752907831956,-247.0,0.00018493,2]
[373208640,1752907831966,-887.0,0.00018573,2]
[373208641,1752907831975,-850.0,0.00018573,2]
[373208642,1752907831985,-2381.23,0.0001863,2]
[373208643,1752907831994,-150.0,0.00018633,2]
[373208644,1752907832004,-291.60958628,0.00018671,2]
[373208645,1752907832013,-5616.47072058,0.00018686,2]
[373208646,1752907832022,-207.4,0.00018686,2]
[373208647,1752907832032,-772.806648,0.00018717,2]
[373208648,1752907832041,-887.0,0.00018901,2]
[373208649,1752907832050,-2062.65983,0.0001891,2]
[373208650,1752907832059,-150.0,0.00018936,2]
[373208651,1752907832069,-200.0,0.00018947,2]
[373208653,1752907832078,-887.0,0.00018959,2]
[373208654,1752907832087,-887.0,0.0001896,2]
[373208655,1752907832097,-545.94071308,0.00018999,2]
[373208656,1752907832106,-2500.0,0.00018999,2]
[373208657,1752907832115,-4579.2209,0.00019,2]
[373208658,1752907832124,-887.0,0.00019016,2]
[373208659,1752907832133,-321.65,0.00019016,2]
[373208660,1752907832143,-167.09695729,0.00019087,2]
[373208661,1752907832152,-151.0,0.00019099,2]
[373208662,1752907832162,-150.0,0.00019099,2]
[373208663,1752907832171,-150.0,0.00019099,2]
[373208664,1752907832180,-150.0,0.00019099,2]
[373208665,1752907832189,-150.0,0.00019099,2]
[373208666,1752907832199,-674.0,0.00019099,2]
[373208667,1752907832208,-300.0,0.00019099,2]
[373208668,1752907832219,-500.0,0.00019099,2]
[373208669,1752907832229,-150.0,0.00019099,2]
[373208670,1752907832238,-150.0,0.00019099,2]
[373208672,1752907832247,-150.0,0.00019099,2]
[373208673,1752907832257,-500.0,0.00019099,2]
[373208674,1752907832266,-1785.9158365,0.00019099,2]
[373208675,1752907832276,-200.0,0.00019099,2]
[373208676,1752907832285,-150.0,0.00019099,2]
[373208677,1752907832294,-2689.0,0.00019099,2]
[373208678,1752907832305,-150.0,0.00019099,2]
[373208679,1752907832315,-143679.16893661,0.00019099,2]
[373208680,1752907832335,-4193.07808159,0.00019099,2]
[373208681,1752907832396,-259.48941325,0.00019099,2]
[373208682,1752907832407,-240.51058675,0.00019099,2]
[373208683,1752907832417,-12.0,0.00019099,2]
[373208684,1752907832432,-490.27727985,0.00019099,2]
[373208685,1752907832441,-418.1177433,0.00019099,2]
[373208686,1752907832451,-1142.41917251,0.00019099,2]
[373208687,1752907832490,-1801.92981084,0.00019099,2]
[373208688,1752907832525,-574.42573208,0.00019099,2]
[373208694,1752907835347,1083.0,0.00016577,2]
[373208705,1752907837599,-1083.0,0.00018322,2]
[373208706,1752907837608,-200.56037985,0.00019099,2]
[373208707,1752907837618,-500.0,0.00019099,2]
[373208708,1752907837627,-135672.88038937,0.00019099,2]
[373208709,1752907837637,-8375.19558741,0.00019099,2]
[373208710,1752907837646,-50000.0,0.000191,2]
[373208711,1752907837655,-47164.00298078,0.000191,2]
[373208712,1752907837664,-1781.4313992,0.000191,2]
[373208713,1752907837674,-287.10497751,0.000191,2]
[373208714,1752907837683,-1683.72,0.000191,7]
[373208715,1752907837692,-151.0,0.000191,2]
[373208716,1752907837701,-152.929551,0.000191,2]
[373208717,1752907837710,-151.0,0.000191,2]
[373208718,1752907837719,-151.0,0.000191,2]
[373208719,1752907837729,-151.0,0.000191,2]
[373208720,1752907837739,-151.0,0.000191,2]
[373208721,1752907837748,-151.0,0.000191,2]
[373208722,1752907837757,-151.871849,0.000191,2]
[373208723,1752907837766,-151.0,0.000191,2]
[373208724,1752907837775,-163.613783,0.000191,2]
[373208725,1752907837785,-151.0,0.000191,2]
[373208726,1752907837794,-151.0,0.000191,2]
[373208727,1752907837803,-151.0,0.000191,2]
[373208728,1752907837812,-151.0,0.000191,2]
[373208729,1752907837821,-151.0,0.000191,2]
[373208730,1752907837830,-151.0,0.000191,2]
[373208731,1752907837839,-150.0,0.000191,2]
[373208732,1752907837848,-150.0,0.000191,2]
[373208733,1752907837857,-124.1196088,0.000191,2]
[373208734,1752907837874,-25.8803912,0.000191,2]
[373208735,1752907837883,-150.0,0.000191,2]
[373208736,1752907837891,-150.0,0.000191,2]
[373208737,1752907837900,-261.905882,0.000191,2]
[373208738,1752907837910,-150.1523506,0.000191,2]
[373208739,1752907837919,-150.0,0.000191,2]
[373208740,1752907837934,-150.0,0.000191,2]
[373208741,1752907837943,-150.0,0.000191,2]
[373208742,1752907837953,-150.0,0.000191,2]
[373208743,1752907837962,-150.0,0.000191,2]
[373208744,1752907837975,-150.0,0.000191,2]
[373208745,1752907837986,-151.0,0.000191,2]
[373208746,1752907837995,-150.0,0.000191,2]
[373208747,1752907838004,-192.109005,0.000191,2]
[373208748,1752907838015,-150.0,0.000191,2]
[373208749,1752907838024,-151.0,0.000191,2]
[373208750,1752907838034,-203.773757,0.000191,2]
[373208751,1752907838043,-151.0,0.000191,2]
[373208752,1752907838055,-151.0,0.000191,2]
[373208753,1752907838066,-151.0,0.000191,2]
[373208754,1752907838075,-1000.0,0.000191,2]
[373208755,1752907838084,-1000.0,0.000191,2]
[373208756,1752907838093,-1000.0,0.000191,2]
[373208757,1752907838102,-1004.1638757,0.000191,2]
[373208758,1752907838112,-150.0,0.000191,2]
[373208759,1752907838121,-151.0,0.000191,2]
[373208760,1752907838130,-500.0,0.000191,2]
[373208761,1752907838140,-151.0,0.000191,2]
[373208762,1752907838149,-151.0,0.000191,2]
[373208763,1752907838158,-241.65201,0.000191,2]
[373208764,1752907838167,-150.0,0.000191,2]
[373208765,1752907838176,-150.0,0.000191,2]
[373208766,1752907838185,-150.0,0.000191,2]
[373208767,1752907838194,-500.0,0.000191,2]
[373208768,1752907838203,-152.608445,0.000191,2]
[373208770,1752907838213,-150.0,0.000191,2]
[373208772,1752907838229,-500.0,0.000191,2]
[373208774,1752907838241,-500.0,0.000191,2]
[373208776,1752907838250,-151.0,0.000191,2]
[373208778,1752907838260,-151.0,0.000191,2]
[373208780,1752907838269,-151.0,0.000191,2]
[373208782,1752907838279,-151.0,0.000191,2]
[373208784,1752907838288,-151.0,0.000191,2]
[373208786,1752907838298,-250.150822,0.000191,2]
[373208788,1752907838308,-168.024036,0.000191,2]
[373208790,1752907838317,-152.440377,0.000191,2]
[373208807,1752907838471,-151.907102,0.000191,2]
[373208809,1752907838481,-150.0,0.000191,2]
[373208811,1752907838490,-908.0,0.000191,2]
[373208813,1752907838501,-150.0,0.000191,2]
[373208815,1752907838510,-151.0,0.000191,2]
[373208817,1752907838519,-151.0,0.000191,2]
[373208819,1752907838528,-151.0,0.000191,2]
[373208821,1752907838538,-500.0,0.000191,2]
[373208823,1752907838547,-151.18608121,0.000191,2]
[373208825,1752907838556,-150.0,0.000191,2]
[373208827,1752907838565,-151.0,0.000191,2]
[373208829,1752907838574,-280.082266,0.000191,2]
[373208831,1752907838584,-151.0,0.000191,2]
[373208833,1752907838593,-151.0,0.000191,2]
[373208835,1752907838602,-151.0,0.000191,2]
[373208837,1752907838611,-151.0,0.000191,2]
[373208839,1752907838620,-151.0,0.000191,2]
[373208841,1752907838629,-232.25104,0.000191,2]
[373208843,1752907838639,-151.0,0.000191,2]
[373208845,1752907838648,-151.0,0.000191,2]
[373208847,1752907838657,-151.0,0.000191,2]
[373208849,1752907838666,-151.0,0.000191,2]
[373208851,1752907838675,-852.498291,0.000191,2]
[373208853,1752907838684,-852.498291,0.000191,2]
[373208855,1752907838693,-852.498291,0.000191,2]
[373208857,1752907838702,-852.498291,0.000191,2]
[373208859,1752907838712,-852.498291,0.000191,2]
[373208861,1752907838721,-852.498291,0.000191,2]
[373208863,1752907838731,-151.0,0.000191,2]
[373208865,1752907838740,-152.482901,0.000191,2]
[373208867,1752907838750,-151.0,0.000191,2]
[373208869,1752907838759,-151.0,0.000191,2]
[373208871,1752907838768,-151.0,0.000191,2]
[373208873,1752907838777,-151.0,0.000191,2]
[373208875,1752907838786,-151.0,0.000191,2]
[373208877,1752907838794,-151.0,0.000191,2]
[373208879,1752907838803,-152.854154,0.000191,2]
[373208881,1752907838813,-151.0,0.000191,2]
[373208883,1752907838822,-162.009352,0.000191,2]
[373208885,1752907838831,-151.0,0.000191,2]
[373208887,1752907838840,-168.0,0.00019101,2]
[373208889,1752907838850,-168.0,0.00019127,2]
[373208890,1752907838859,-151.0,0.0001917,2]
[373208892,1752907838869,-765.0,0.0001917,2]
[373208894,1752907838878,-150.0,0.00019171,2]
[373208896,1752907838887,-150.0,0.00019174,2]
[373208898,1752907838896,-291.714547,0.00019178,2]
[373208900,1752907838906,-291.954012,0.00019178,2]
[373208902,1752907838916,-15629.95221597,0.00019178,2]
[373208904,1752907838925,-276.77519704,0.00019178,2]
[373208906,1752907838935,-176.82624687,0.00019178,2]
[373208908,1752907838944,-152.461188,0.00019178,2]
[373208910,1752907838953,-480.0,0.00019178,2]
[373208912,1752907838963,-1201.35,0.00019178,2]
[373208914,1752907838972,-321.17186923,0.00019178,2]
[373208916,1752907838982,-489.14390006,0.00019178,2]
[373208918,1752907838991,-151.0,0.00019178,2]
[373208920,1752907839000,-175.031762,0.00019178,2]
[373208922,1752907839010,-488.71800289,0.00019178,2]
[373208924,1752907839019,-480.0,0.00019178,2]
[373208926,1752907839028,-480.0,0.00019178,2]
[373208928,1752907839038,-490.23232355,0.00019178,2]
[373208930,1752907839047,-496.74197295,0.00019178,2]
[373208932,1752907839057,-237.32760656,0.00019178,2]
[373208934,1752907839066,-495.1634636,0.00019178,2]
[373208936,1752907839075,-151.0,0.00019178,2]
[373208938,1752907839084,-151.0,0.00019178,2]
[373208940,1752907839093,-151.0,0.00019178,2]
[373208942,1752907839103,-151.0,0.00019178,2]
[373208944,1752907839112,-491.72331485,0.00019178,2]
[373208946,1752907839121,-151.0,0.00019178,2]
[373208948,1752907839131,-151.0,0.00019178,2]
[373208950,1752907839140,-151.0,0.00019178,2]
[373208952,1752907839149,-151.0,0.00019178,2]
[373208954,1752907839158,-151.0,0.00019178,2]
[373208956,1752907839167,-288.69314,0.00019178,2]
[373208958,1752907839176,-485.74880748,0.00019178,2]
[373208960,1752907839185,-490.29887324,0.00019178,2]
[373208962,1752907839194,-480.0,0.00019178,2]
[373208964,1752907839204,-405.19711241,0.00019178,2]
[373208966,1752907839213,-486.95151076,0.00019178,2]
[373208968,1752907839227,-495.86829041,0.00019178,2]
[373208970,1752907839236,-480.0,0.00019178,2]
[373208972,1752907839245,-457.35419246,0.00019178,2]
[373208974,1752907839254,-480.0,0.00019178,2]
[373208976,1752907839265,-480.0,0.00019178,2]
[373208978,1752907839275,-539.29335655,0.00019178,2]
[373208980,1752907839284,-151.0,0.00019178,2]
[373208982,1752907839295,-151.0,0.00019178,2]
[373208984,1752907839304,-151.0,0.00019178,2]
[373208986,1752907839314,-90.55168773,0.00019178,2]
[373208989,1752907839332,-60.44831227,0.00019178,2]
[373208991,1752907839342,-274.03904,0.00019178,2]
[373208993,1752907839351,-496.52909313,0.00019178,2]
[373208995,1752907839360,-190.37992845,0.00019178,2]
[373208997,1752907839376,-289.62007155,0.00019178,2]
[373208999,1752907839386,-456.67583812,0.00019178,2]
[373209001,1752907839395,-269.66158213,0.00019178,2]
[373209003,1752907839405,-480.0,0.00019178,2]
[373209005,1752907839414,-489.09046365,0.00019178,2]
[373209007,1752907839424,-480.0,0.00019178,2]
[373209009,1752907839433,-480.0,0.00019178,2]
[373209011,1752907839443,-247.93742475,0.00019178,2]
[373209013,1752907839452,-480.0,0.00019178,2]
[373209015,1752907839462,-352.7563724,0.00019178,2]
[373209017,1752907839472,-441.4785926,0.00019178,2]
[373209019,1752907839482,-480.0,0.00019178,2]
[373209021,1752907839491,-523.3249107,0.00019178,2]
[373209023,1752907839501,-314.07935297,0.00019178,2]
[373209025,1752907839511,-480.0,0.00019178,2]
[373209027,1752907839520,-616.68,0.00019178,2]
[373209029,1752907839530,-480.0,0.00019178,2]
[373209031,1752907839540,-480.0,0.00019178,2]
[373209033,1752907839551,-12.09090501,0.00019178,2]
[373209073,1752907839930,540.41198209,0.00015748,2]
[373209077,1752907839955,-150.0,0.00019099,2]
[373209079,1752907839964,-467.90909499,0.00019178,2]
[373209081,1752907839974,-9.47438021,0.00019178,2]
[373209083,1752907839989,-601.8809615,0.00019178,2]
[373209330,1752907842850,-909.0,0.00019099,2]
[373209331,1752907842860,-4.38545061,0.00019178,2]
[373209332,1752907842869,-483.57065813,0.00019178,2]
[373209333,1752907842879,-503.07151931,0.00019178,2]
[373209335,1752907842888,-356.34377231,0.00019178,2]
[373209336,1752907842897,-501.79520854,0.00019178,2]
[373209338,1752907842906,-480.0,0.00019178,2]
[373209340,1752907842916,-480.0,0.00019178,2]
[373209342,1752907842925,-480.0,0.00019178,2]
[373209344,1752907842935,-489.00905924,0.00019178,2]
[373209346,1752907842944,-480.0,0.00019178,2]
[373209348,1752907842954,-480.0,0.00019178,2]
[373209350,1752907842964,-480.0,0.00019178,2]
[373209352,1752907842973,-500.0,0.00019178,2]
[373209354,1752907842986,-480.0,0.00019178,2]
[373209356,1752907842995,-257.14773033,0.00019178,2]
[373209359,1752907843007,-182.85226967,0.00019178,2]
[373209361,1752907843017,-480.0,0.00019178,2]
[373209363,1752907843027,-490.89869461,0.00019178,2]
[373209365,1752907843040,-480.0,0.00019178,2]
[373209367,1752907843050,-480.0,0.00019178,2]
[373209369,1752907843059,-480.0,0.00019178,2]
[373209371,1752907843069,-480.0,0.00019178,2]
[373209373,1752907843079,-487.87319229,0.00019178,2]
[373209375,1752907843088,-480.0,0.00019178,2]
[373209377,1752907843098,-302.0245665,0.00019178,2]
[373209379,1752907843107,-486.11,0.00019178,2]
[373209381,1752907843117,-622.4,0.00019178,2]
[373209383,1752907843127,-292.72726369,0.00019178,2]
[373209385,1752907843137,-318.09570458,0.00019178,2]
[373209387,1752907843152,-480.0,0.00019178,2]
[373209389,1752907843161,-465.86848203,0.00019178,2]